fUSD/lending_fUSD_20250521
["ID","MTS","AMOUNT","RATE_DAILY","PERIOD"]
[361837522,1747827100811,-4059.65,0.00036712,5]
[361837523,1747827100821,-561.7,0.00036712,5]
[361837524,1747827100831,-6775.14,0.00036712,5]
[361837525,1747827100841,-420.0,0.00036712,5]
[361837526,1747827100851,-3582.79,0.00036712,5]
[361837527,1747827100861,-477.4,0.00036712,5]
[361837528,1747827100871,-1722.63,0.00036712,5]
[361837529,1747827100882,-1654.14,0.00036712,5]
[361837530,1747827100892,-1143.17,0.00036712,5]
[361837531,1747827100902,-567.49,0.00036712,5]
[361837532,1747827100912,-471.02,0.00036712,5]
[361837533,1747827100923,-933.58,0.00036712,5]
[361837534,1747827100933,-2021.44,0.00036712,5]
[361837535,1747827100944,-420.0,0.00036712,5]
[361837536,1747827100957,-4350.06,0.00036712,5]
[361837537,1747827100970,-814.46,0.00036712,5]
[361837538,1747827100982,-749.3,0.00036712,5]
[361837539,1747827100995,-801.9,0.00036712,5]
[361837540,1747827101006,-458.25,0.00036849,2]
[361837541,1747827101019,-458.25,0.00036849,2]
[361837542,1747827101030,-458.25,0.00036849,2]
[361837543,1747827101041,-458.25,0.00036849,2]
[361837544,1747827101055,-435.4217,0.00036888,7]
[361837545,1747827101065,-239.84119403,0.00036902,2]
[361837546,1747827101076,-150.0,0.00036906,30]
[361837547,1747827101086,-2472.68897898,0.00036906,30]
[361837548,1747827101096,-852.08,0.00036986,5]
[361837549,1747827101106,-838.29,0.00036986,5]
[361837550,1747827101117,-756.34,0.00036986,5]
[361837551,1747827101127,-456.81,0.00036986,5]
[361837552,1747827101137,-480.11,0.00036986,5]
[361837553,1747827101147,-420.0,0.00036986,5]
[361837554,1747827101157,-420.0,0.00036986,5]
[361837555,1747827101167,-803.54,0.00036986,5]
[361837556,1747827101177,-1218.18,0.00036986,5]
[361837557,1747827101187,-942.88,0.00036986,5]
[361837558,1747827101197,-797.13,0.00036986,5]
[361837559,1747827101207,-484.61768447,0.00036986,5]
[361837560,1747827101218,-1263.34,0.00036986,5]
[361837561,1747827101228,-420.0,0.00036986,5]
[361837562,1747827101238,-420.0,0.00036986,5]
[361837563,1747827101247,-599.61,0.00036986,5]
[361837564,1747827101263,-1887.18,0.00036986,5]
[361837565,1747827101273,-537.6,0.00036986,5]
[361837566,1747827101283,-420.0,0.00036986,5]
[361837567,1747827101294,-995.6,0.00036986,5]
[361837568,1747827101304,-692.22,0.00036986,5]
[361837569,1747827101315,-420.0,0.00036986,5]
[361837570,1747827101325,-584.19,0.00036986,5]
[361837571,1747827101336,-420.0,0.00036986,5]
[361837572,1747827101346,-847.72,0.00036986,5]
[361837573,1747827101357,-674.03,0.00036986,5]
[361837574,1747827101367,-627.96,0.00036986,5]
[361837575,1747827101377,-524.74,0.00036986,5]
[361837576,1747827101386,-300.99864051,0.00036986,5]
[361837577,1747827101397,-1128.54,0.00036986,5]
[361837578,1747827101407,-814.71,0.00036986,5]
[361837579,1747827101417,-1370.32,0.00036986,5]
[361837580,1747827101427,-574.94,0.00036986,5]
[361837581,1747827101437,-455.14,0.00036986,5]
[361837582,1747827101447,-1337.7,0.00036986,5]
[361837583,1747827101458,-478.34,0.00036986,5]
[361837584,1747827101467,-420.0,0.00036986,5]
[361837585,1747827101478,-504.02,0.00036986,5]
[361837586,1747827101487,-565.8,0.00036986,5]
[361837587,1747827101497,-728.55,0.00036986,5]
[361837588,1747827101506,-420.0,0.00036986,5]
[361837589,1747827101517,-732.9,0.00036986,5]
[361837590,1747827101527,-1165.23,0.00036986,5]
[361837591,1747827101537,-1378.94,0.00036986,5]
[361837592,1747827101548,-1472.56,0.00036986,5]
[361837593,1747827101559,-2721.26,0.00036986,5]
[361837594,1747827101569,-815.36,0.00036986,5]
[361837595,1747827101578,-3421.67,0.00036986,5]
[361837596,1747827101588,-359.1559665,0.00036986,5]
[361837597,1747827101597,-420.0,0.00036986,5]
[361837598,1747827101607,-2581.6,0.00036986,5]
[361837599,1747827101617,-3315.32,0.00036986,5]
[361837600,1747827101629,-1137.48,0.00036986,5]
[361837601,1747827101639,-1399.99,0.00036986,5]
[361837602,1747827101649,-151.0,0.00036986,7]
[361837603,1747827101660,-2580.06,0.00036986,5]
[361837604,1747827101670,-594.98,0.00036986,5]
[361837605,1747827101680,-1980.3,0.00036986,5]
[361837606,1747827101695,-2964.03,0.00036986,5]
[361837607,1747827101705,-420.0,0.00036986,5]
[361837608,1747827101718,-461.83,0.00036986,5]
[361837609,1747827101729,-1561.77,0.00036986,5]
[361837610,1747827101739,-151.0,0.00036986,7]
[361837611,1747827101749,-420.0,0.00036986,5]
[361837612,1747827101761,-151.0,0.00036986,7]
[361837613,1747827101771,-950.46,0.00036986,5]
[361837614,1747827101781,-1769.8,0.00036986,5]
[361837615,1747827101791,-498.42,0.00036986,5]
[361837616,1747827101802,-1036.55,0.00036986,5]
[361837617,1747827101812,-934.39,0.00036986,5]
[361837618,1747827101822,-3529.11,0.00036986,5]
[361837619,1747827101833,-1927.57,0.00036986,5]
[361837620,1747827101843,-1266.55,0.00036986,5]
[361837621,1747827101853,-1455.7,0.00036986,5]
[361837622,1747827101863,-2836.71,0.00036986,5]
[361837623,1747827101873,-760.46,0.00036986,5]
[361837624,1747827101883,-1060.83,0.00036986,5]
[361837625,1747827101894,-6149.49,0.00036986,5]
[361837626,1747827101904,-1097.74,0.00036986,5]
[361837627,1747827101914,-879.61,0.00036986,5]
[361837628,1747827101924,-420.0,0.00036986,5]
[361837629,1747827101935,-1674.91,0.00036986,5]
[361837630,1747827101945,-1406.72,0.00036986,5]
[361837631,1747827101955,-867.9,0.00036986,5]
[361837632,1747827101965,-526.8,0.00036986,5]
[361837633,1747827101975,-950.88,0.00036986,5]
[361837634,1747827101985,-882.4,0.00036986,5]
[361837635,1747827101995,-800.16,0.00036986,5]
[361837636,1747827102006,-504.22,0.00036986,5]
[361837637,1747827102015,-1081.43,0.00036986,5]
[361837638,1747827102025,-460.09,0.00036986,5]
[361837639,1747827102035,-3043.74,0.00036986,5]
[361837640,1747827102045,-3632.54,0.00036986,5]
[361837641,1747827102054,-1270.86,0.00036986,5]
[361837642,1747827102064,-1956.56,0.00036986,5]
[361837643,1747827102074,-930.2,0.00036986,5]
[361837644,1747827102084,-420.0,0.00036986,5]
[361837645,1747827102094,-546.53532629,0.00036986,5]
[361837646,1747827102104,-2005.74,0.00036986,5]
[361837647,1747827102114,-420.0,0.00036986,5]
[361837648,1747827102132,-1347.5,0.00036986,5]
[361837649,1747827102145,-607.7,0.00036986,5]
[361837650,1747827102155,-1108.97,0.00036986,5]
[361837651,1747827102166,-602.41,0.00036986,5]
[361837652,1747827102176,-420.0,0.00036986,5]
[361837653,1747827102186,-566.38,0.00036986,5]
[361837654,1747827102196,-908.79,0.00036986,5]
[361837655,1747827102207,-420.0,0.00036986,5]
[361837656,1747827102217,-470.13,0.00036986,5]
[361837657,1747827102227,-684.18,0.00036986,5]
[361837658,1747827102238,-420.0,0.00036986,5]
[361837659,1747827102248,-511.84,0.00036986,5]
[361837660,1747827102258,-420.0,0.00036986,5]
[361837661,1747827102268,-4969.67,0.00036986,5]
[361837662,1747827102279,-420.0,0.00036986,5]
[361837663,1747827102289,-1780.73,0.00036986,5]
[361837664,1747827102299,-2063.59,0.00036986,5]
[361837665,1747827102310,-866.09,0.00036986,5]
[361837666,1747827102319,-420.0,0.00036986,5]
[361837667,1747827102329,-456.94,0.00036986,5]
[361837668,1747827102339,-593.02,0.00036986,5]
[361837669,1747827102349,-1691.23,0.00036986,5]
[361837670,1747827102359,-823.81,0.00036986,5]
[361837671,1747827102370,-1222.13,0.00036986,5]
[361837672,1747827102380,-313.10637097,0.00036986,5]
[361837673,1747827102390,-632.72,0.00036986,5]
[361837674,1747827102399,-420.0,0.00036986,5]
[361837675,1747827102409,-1212.6,0.00036986,5]
[361837676,1747827102419,-899.54,0.00036986,5]
[361837677,1747827102429,-553.14,0.00036986,5]
[361837678,1747827102439,-14631.66,0.00036986,5]
[361837679,1747827102448,-2455.33,0.00036986,5]
[361837680,1747827102458,-687.17,0.00036986,5]
[361837681,1747827102468,-510.0,0.00036986,5]
[361837682,1747827102478,-1819.43,0.00036986,5]
[361837683,1747827102488,-737.01,0.00036986,5]
[361837684,1747827102498,-570.3,0.00036986,5]
[361837685,1747827102508,-3896.68,0.00036986,5]
[361837686,1747827102518,-420.0,0.00036986,5]
[361837687,1747827102528,-539.51,0.00036986,5]
[361837688,1747827102538,-1414.29,0.00036986,5]
[361837689,1747827102548,-3151.73,0.00036986,5]
[361837690,1747827102557,-14144.26,0.00036986,5]
[361837691,1747827102567,-8547.26,0.00036986,5]
[361837692,1747827102582,-4415.45,0.00036986,5]
[361837693,1747827102592,-1230.64,0.00036986,5]
[361837694,1747827102601,-1703.83,0.00036986,5]
[361837695,1747827102611,-555.55,0.00036986,5]
[361837696,1747827102621,-6937.33,0.00036986,5]
[361837697,1747827102630,-15406.07,0.00036986,5]
[361837698,1747827102641,-634.69,0.00036986,5]
[361837699,1747827102657,-1151.78,0.00036986,5]
[361837700,1747827102667,-29896.52,0.00036986,5]
[361837701,1747827102678,-7119.22,0.00036986,5]
[361837702,1747827102688,-4554.6,0.00036986,5]
[361837703,1747827102699,-453.24,0.00036986,5]
[361837704,1747827102709,-923.2,0.00036986,5]
[361837705,1747827102721,-1187.43,0.00036986,5]
[361837706,1747827102731,-1687.56,0.00036986,5]
[361837707,1747827102741,-735.32,0.00036986,5]
[361837708,1747827102751,-1027.32,0.00036986,5]
[361837709,1747827102761,-422.99,0.00036986,5]
[361837710,1747827102771,-2411.69,0.00036986,5]
[361837711,1747827102781,-1168.04,0.00036986,5]
[361837712,1747827102793,-420.0,0.00036986,5]
[361837713,1747827102803,-2041.94,0.00036986,5]
[361837714,1747827102813,-987.93,0.00036986,5]
[361837715,1747827102823,-1081.8,0.00036986,5]
[361837716,1747827102833,-1021.78,0.00036986,5]
[361837717,1747827102844,-990.58,0.00036986,5]
[361837718,1747827102855,-836.48,0.00036986,5]
[361837719,1747827102865,-438.95043077,0.00036986,5]
[361837720,1747827102875,-1734.22,0.00036986,5]
[361837721,1747827102885,-3677.77,0.00036986,5]
[361837722,1747827102896,-1825.28,0.00036986,5]
[361837723,1747827102907,-3633.83,0.00036986,5]
[361837724,1747827102917,-420.0,0.00036986,5]
[361837725,1747827102927,-593.9,0.00036986,5]
[361837726,1747827102937,-5549.41,0.00036986,5]
[361837727,1747827102947,-638.11,0.00036986,2]
[361837728,1747827102957,-420.0,0.00036986,5]
[361837729,1747827102967,-2012.33,0.00036986,5]
[361837730,1747827102977,-2891.24,0.00036986,5]
[361837731,1747827102987,-483.27729953,0.00036986,5]
[361837732,1747827102996,-420.0,0.00036986,5]
[361837733,1747827103006,-3346.56,0.00036986,5]
[361837734,1747827103015,-709.25,0.00036986,5]
[361837735,1747827103025,-420.0,0.00036986,5]
[361837736,1747827103035,-420.63,0.00036986,5]
[361837737,1747827103045,-1095.31,0.00036986,5]
[361837738,1747827103054,-470.99,0.00036986,5]
[361837739,1747827103064,-451.82,0.00036986,5]
[361837740,1747827103074,-426.33,0.00036986,5]
[361837741,1747827103084,-1236.71,0.00036986,5]
[361837742,1747827103095,-2495.64,0.00036986,5]
[361837743,1747827103106,-420.0,0.00036986,5]
[361837744,1747827103116,-1160.66,0.00036986,5]
[361837745,1747827103126,-4059.65,0.00036986,5]
[361837746,1747827103136,-561.7,0.00036986,5]
[361837747,1747827103146,-6775.14,0.00036986,5]
[361837748,1747827103157,-420.0,0.00036986,5]
[361837749,1747827103166,-3582.79,0.00036986,5]
[361837750,1747827103177,-477.4,0.00036986,5]
[361837751,1747827103186,-1722.63,0.00036986,5]
[361837752,1747827103197,-1654.14,0.00036986,5]
[361837753,1747827103206,-1143.17,0.00036986,5]
[361837754,1747827103216,-567.49,0.00036986,5]
[361837755,1747827103226,-471.02,0.00036986,5]
[361837756,1747827103235,-933.58,0.00036986,5]
[361837757,1747827103245,-2021.44,0.00036986,5]
[361837758,1747827103255,-420.0,0.00036986,5]
[361837759,1747827103265,-4350.06,0.00036986,5]
[361837760,1747827103274,-814.46,0.00036986,5]
[361837761,1747827103284,-749.3,0.00036986,5]
[361837762,1747827103293,-801.9,0.00036986,5]
[361837763,1747827103303,-353.35,0.00036986,2]
[361837764,1747827103313,-353.35,0.00036986,2]
[361837765,1747827103322,-353.2,0.00036986,2]
[361837766,1747827103332,-302.94,0.00036986,2]
[361837767,1747827103342,-340.14,0.00036986,2]
[361837768,1747827103352,-18329.56,0.000371,14]
[361837769,1747827103364,-2640.27,0.00037132,5]
[361837770,1747827103373,-2110.0,0.00037178,2]
[361837771,1747827103383,-214.99019679,0.000372,120]
[361837772,1747827103393,-852.08,0.0003726,5]
[361837773,1747827103403,-838.29,0.0003726,5]
[361837774,1747827103412,-756.34,0.0003726,5]
[361837775,1747827103422,-456.81,0.0003726,5]
[361837776,1747827103432,-480.11,0.0003726,5]
[361837777,1747827103442,-420.0,0.0003726,5]
[361837778,1747827103452,-420.0,0.0003726,5]
[361837779,1747827103463,-803.54,0.0003726,5]
[361837780,1747827103473,-1218.18,0.0003726,5]
[361837781,1747827103483,-942.88,0.0003726,5]
[361837782,1747827103493,-797.13,0.0003726,5]
[361837783,1747827103504,-1263.34,0.0003726,5]
[361837784,1747827103514,-198.05640714,0.0003726,5]
[361837785,1747827103525,-420.0,0.0003726,5]
[361837786,1747827103535,-599.61,0.0003726,5]
[361837787,1747827103546,-1887.18,0.0003726,5]
[361837788,1747827103556,-537.6,0.0003726,5]
[361837789,1747827103566,-420.0,0.0003726,5]
[361837790,1747827103576,-995.6,0.0003726,5]
[361837791,1747827103586,-692.22,0.0003726,5]
[361837792,1747827103597,-420.0,0.0003726,5]
[361837793,1747827103610,-584.19,0.0003726,5]
[361837794,1747827103620,-420.0,0.0003726,5]
[361837795,1747827103631,-847.72,0.0003726,5]
[361837796,1747827103641,-674.03,0.0003726,5]
[361837797,1747827103651,-627.96,0.0003726,5]
[361837798,1747827103662,-524.74,0.0003726,5]
[361837799,1747827103673,-1128.54,0.0003726,5]
[361837800,1747827103683,-814.71,0.0003726,5]
[361837801,1747827103694,-1370.32,0.0003726,5]
[361837802,1747827103705,-574.94,0.0003726,5]
[361837803,1747827103718,-455.14,0.0003726,5]
[361837804,1747827103728,-1337.7,0.0003726,5]
[361837805,1747827103740,-478.34,0.0003726,5]
[361837806,1747827103750,-420.0,0.0003726,5]
[361837807,1747827103762,-504.02,0.0003726,5]
[361837808,1747827103772,-565.8,0.0003726,5]
[361837809,1747827103783,-728.55,0.0003726,5]
[361837810,1747827103795,-420.0,0.0003726,5]
[361837811,1747827103806,-732.9,0.0003726,5]
[361837812,1747827103817,-1165.23,0.0003726,5]
[361837813,1747827103827,-1378.94,0.0003726,5]
[361837814,1747827103837,-2721.26,0.0003726,5]
[361837815,1747827103848,-1472.56,0.0003726,5]
[361837816,1747827103860,-815.36,0.0003726,5]
[361837817,1747827103870,-3421.67,0.0003726,5]
[361837818,1747827103881,-420.0,0.0003726,5]
[361837819,1747827103893,-2581.6,0.0003726,5]
[361837820,1747827103903,-3315.32,0.0003726,5]
[361837821,1747827103914,-1137.48,0.0003726,5]
[361837822,1747827103925,-1399.99,0.0003726,5]
[361837823,1747827103936,-2580.06,0.0003726,5]
[361837824,1747827103947,-594.98,0.0003726,5]
[361837825,1747827103958,-1980.3,0.0003726,5]
[361837826,1747827103968,-2964.03,0.0003726,5]
[361837827,1747827103979,-420.0,0.0003726,5]
[361837828,1747827103989,-461.83,0.0003726,5]
[361837829,1747827104000,-1561.77,0.0003726,5]
[361837830,1747827104010,-420.0,0.0003726,5]
[361837831,1747827104021,-950.46,0.0003726,5]
[361837832,1747827104032,-1769.8,0.0003726,5]
[361837833,1747827104042,-498.42,0.0003726,5]
[361837834,1747827104054,-1036.55,0.0003726,5]
[361837835,1747827104065,-934.39,0.0003726,5]
[361837836,1747827104075,-3529.11,0.0003726,5]
[361837837,1747827104086,-1927.57,0.0003726,5]
[361837838,1747827104097,-1266.55,0.0003726,5]
[361837839,1747827104108,-1455.7,0.0003726,5]
[361837840,1747827104118,-2836.71,0.0003726,5]
[361837841,1747827104128,-760.46,0.0003726,5]
[361837842,1747827104139,-1060.83,0.0003726,5]
[361837843,1747827104150,-6149.49,0.0003726,5]
[361837844,1747827104161,-1097.74,0.0003726,5]
[361837845,1747827104171,-879.61,0.0003726,5]
[361837846,1747827104182,-420.0,0.0003726,5]
[361837847,1747827104192,-1674.91,0.0003726,5]
[361837848,1747827104203,-1406.72,0.0003726,5]
[361837849,1747827104214,-867.9,0.0003726,5]
[361837850,1747827104224,-526.8,0.0003726,5]
[361837851,1747827104234,-950.88,0.0003726,5]
[361837852,1747827104246,-882.4,0.0003726,5]
[361837853,1747827104256,-800.16,0.0003726,5]
[361837854,1747827104267,-504.22,0.0003726,5]
[361837855,1747827104278,-1081.43,0.0003726,5]
[361837856,1747827104288,-460.09,0.0003726,5]
[361837857,1747827104300,-3043.74,0.0003726,5]
[361837858,1747827104311,-3632.54,0.0003726,5]
[361837859,1747827104321,-1270.86,0.0003726,5]
[361837860,1747827104333,-1956.56,0.0003726,5]
[361837861,1747827104345,-930.2,0.0003726,5]
[361837862,1747827104357,-306.92717295,0.0003726,5]
[361837863,1747827104368,-2005.74,0.0003726,5]
[361837864,1747827104378,-420.0,0.0003726,5]
[361837865,1747827104389,-1347.5,0.0003726,5]
[361837866,1747827104399,-607.7,0.0003726,5]
[361837867,1747827104409,-1108.97,0.0003726,5]
[361837868,1747827104420,-602.41,0.0003726,5]
[361837869,1747827104433,-420.0,0.0003726,5]
[361837870,1747827104445,-566.38,0.0003726,5]
[361837871,1747827104456,-908.79,0.0003726,5]
[361837872,1747827104467,-526.79891128,0.0003726,5]
[361837873,1747827104477,-470.13,0.0003726,5]
[361837874,1747827104488,-684.18,0.0003726,5]
[361837875,1747827104499,-420.0,0.0003726,5]
[361837876,1747827104509,-511.84,0.0003726,5]
[361837877,1747827104520,-420.0,0.0003726,5]
[361837878,1747827104530,-4969.67,0.0003726,5]
[361837879,1747827104540,-420.0,0.0003726,5]
[361837880,1747827104551,-1780.73,0.0003726,5]
[361837881,1747827104561,-151.0,0.0003726,7]
[361837882,1747827104572,-151.0,0.0003726,7]
[361837883,1747827104582,-2063.59,0.0003726,5]
[361837884,1747827104594,-866.09,0.0003726,5]
[361837885,1747827104606,-420.0,0.0003726,5]
[361837886,1747827104616,-593.02,0.0003726,5]
[361837887,1747827104627,-1691.23,0.0003726,5]
[361837888,1747827104637,-823.81,0.0003726,5]
[361837889,1747827104648,-1222.13,0.0003726,5]
[361837890,1747827104661,-632.72,0.0003726,5]
[361837891,1747827104671,-420.0,0.0003726,5]
[361837892,1747827104682,-1212.6,0.0003726,5]
[361837893,1747827104693,-899.54,0.0003726,5]
[361837894,1747827104703,-553.14,0.0003726,5]
[361837895,1747827104714,-14631.66,0.0003726,5]
[361837896,1747827104728,-2455.33,0.0003726,5]
[361837897,1747827104737,-687.17,0.0003726,5]
[361837898,1747827104749,-510.0,0.0003726,5]
[361837899,1747827104762,-1819.43,0.0003726,5]
[361837900,1747827104772,-737.01,0.0003726,5]
[361837901,1747827104782,-570.3,0.0003726,5]
[361837902,1747827104793,-3896.68,0.0003726,5]
[361837903,1747827104806,-220.1004411,0.0003726,5]
[361837904,1747827104817,-539.51,0.0003726,5]
[361837905,1747827104828,-1414.29,0.0003726,5]
[361837906,1747827104839,-3151.73,0.0003726,5]
[361837907,1747827104849,-14144.26,0.0003726,5]
[361837908,1747827104860,-8547.26,0.0003726,5]
[361837909,1747827104871,-4415.45,0.0003726,5]
[361837910,1747827104881,-1230.64,0.0003726,5]
[361837911,1747827104892,-1703.83,0.0003726,5]
[361837912,1747827104903,-555.55,0.0003726,5]
[361837913,1747827104913,-6937.33,0.0003726,5]
[361837914,1747827104924,-15406.07,0.0003726,5]
[361837915,1747827104935,-634.69,0.0003726,5]
[361837916,1747827104945,-1151.78,0.0003726,5]
[361837917,1747827104956,-29896.52,0.0003726,5]
[361837918,1747827104967,-7119.22,0.0003726,5]
[361837919,1747827104977,-4554.6,0.0003726,5]
[361837920,1747827104988,-453.24,0.0003726,5]
[361837921,1747827104999,-923.2,0.0003726,5]
[361837922,1747827105010,-1187.43,0.0003726,5]
[361837923,1747827105021,-1687.56,0.0003726,5]
[361837924,1747827105031,-735.32,0.0003726,5]
[361837925,1747827105041,-422.99,0.0003726,5]
[361837926,1747827105052,-1027.32,0.0003726,5]
[361837927,1747827105064,-2411.69,0.0003726,5]
[361837928,1747827105074,-420.0,0.0003726,5]
[361837929,1747827105084,-1168.04,0.0003726,5]
[361837930,1747827105095,-2041.94,0.0003726,5]
[361837931,1747827105106,-987.93,0.0003726,5]
[361837932,1747827105117,-1081.8,0.0003726,5]
[361837933,1747827105127,-1021.78,0.0003726,5]
[361837934,1747827105137,-990.58,0.0003726,5]
[361837935,1747827105147,-836.48,0.0003726,5]
[361837936,1747827105158,-1734.22,0.0003726,5]
[361837937,1747827105169,-3677.77,0.0003726,5]
[361837938,1747827105179,-1825.28,0.0003726,5]
[361837939,1747827105190,-3633.83,0.0003726,5]
[361837940,1747827105201,-420.0,0.0003726,5]
[361837941,1747827105213,-593.9,0.0003726,5]
[361837942,1747827105223,-5549.41,0.0003726,5]
[361837943,1747827105233,-151.0,0.0003726,7]
[361837944,1747827105243,-638.11,0.0003726,2]
[361837945,1747827105254,-420.0,0.0003726,5]
[361837946,1747827105264,-2012.33,0.0003726,5]
[361837947,1747827105275,-2891.24,0.0003726,5]
[361837948,1747827105286,-328.13962738,0.0003726,5]
[361837949,1747827105296,-3346.56,0.0003726,5]
[361837950,1747827105307,-709.25,0.0003726,5]
[361837951,1747827105318,-420.0,0.0003726,5]
[361837952,1747827105330,-420.63,0.0003726,5]
[361837953,1747827105342,-1095.31,0.0003726,5]
[361837954,1747827105354,-470.99,0.0003726,5]
[361837955,1747827105365,-451.82,0.0003726,5]
[361837956,1747827105375,-426.33,0.0003726,5]
[361837957,1747827105385,-1236.71,0.0003726,5]
[361837958,1747827105396,-2495.64,0.0003726,5]
[361837959,1747827105406,-420.0,0.0003726,5]
[361837960,1747827105418,-1160.66,0.0003726,5]
[361837961,1747827105428,-4059.65,0.0003726,5]
[361837962,1747827105438,-561.7,0.0003726,5]
[361837963,1747827105449,-6775.14,0.0003726,5]
[361837964,1747827105459,-420.0,0.0003726,5]
[361837965,1747827105469,-3582.79,0.0003726,5]
[361837966,1747827105480,-477.4,0.0003726,5]
[361837967,1747827105490,-1722.63,0.0003726,5]
[361837968,1747827105502,-1654.14,0.0003726,5]
[361837969,1747827105514,-1143.17,0.0003726,5]
[361837970,1747827105526,-567.49,0.0003726,5]
[361837971,1747827105536,-471.02,0.0003726,5]
[361837972,1747827105547,-933.58,0.0003726,5]
[361837973,1747827105557,-2021.44,0.0003726,5]
[361837974,1747827105568,-420.0,0.0003726,5]
[361837975,1747827105578,-4350.06,0.0003726,5]
[361837976,1747827105589,-814.46,0.0003726,5]
[361837977,1747827105599,-749.3,0.0003726,5]
[361837978,1747827105610,-801.9,0.0003726,5]
[361837979,1747827105621,-1241.91,0.0003726,5]
[361837980,1747827105632,-694.38443016,0.0003737,2]
[361837981,1747827105642,-151.0,0.000374,19]
[361837982,1747827105653,-174.61919141,0.0003743,2]
[361837983,1747827105663,-773.2413689,0.0003743,2]
[361837984,1747827105673,-1386.78395259,0.0003743,2]
[361837985,1747827105684,-1225.44,0.00037534,5]
[361837986,1747827105694,-852.08,0.00037534,5]
[361837987,1747827105705,-838.29,0.00037534,5]
[361837988,1747827105716,-756.34,0.00037534,5]
[361837989,1747827105729,-456.81,0.00037534,5]
[361837990,1747827105739,-480.11,0.00037534,5]
[361837991,1747827105749,-420.0,0.00037534,5]
[361837992,1747827105760,-420.0,0.00037534,5]
[361837993,1747827105771,-803.54,0.00037534,5]
[361837994,1747827105783,-1218.18,0.00037534,5]
[361837995,1747827105794,-942.88,0.00037534,5]
[361837996,1747827105806,-797.13,0.00037534,5]
[361837997,1747827105818,-1263.34,0.00037534,5]
[361837998,1747827106139,-420.0,0.00037534,5]
[361837999,1747827106163,-599.61,0.00037534,5]
[361838000,1747827106173,-1887.18,0.00037534,5]
[361838001,1747827106183,-537.6,0.00037534,5]
[361838002,1747827106193,-437.11565565,0.00037534,5]
[361838003,1747827106203,-995.6,0.00037534,5]
[361838004,1747827106213,-692.22,0.00037534,5]
[361838005,1747827106223,-420.0,0.00037534,5]
[361838006,1747827106233,-584.19,0.00037534,5]
[361838007,1747827106243,-420.0,0.00037534,5]
[361838008,1747827106253,-847.72,0.00037534,5]
[361838009,1747827106262,-674.03,0.00037534,5]
[361838010,1747827106272,-627.96,0.00037534,5]
[361838011,1747827106282,-524.74,0.00037534,5]
[361838012,1747827106292,-1128.54,0.00037534,5]
[361838013,1747827106302,-814.71,0.00037534,5]
[361838014,1747827106312,-1370.32,0.00037534,5]
[361838015,1747827106322,-574.94,0.00037534,5]
[361838016,1747827106332,-455.14,0.00037534,5]
[361838017,1747827106342,-1337.7,0.00037534,5]
[361838018,1747827106352,-478.34,0.00037534,5]
[361838019,1747827106363,-327.50183083,0.00037534,5]
[361838020,1747827106372,-504.02,0.00037534,5]
[361838021,1747827106383,-565.8,0.00037534,5]